bitfinex/quotes_ETHUSD_20251119
["timestamp","ask_amount","ask_price","bid_price","bid_amount"]
[1763529651263,0.002,3048.0,3047.9,8.4572016]
[1763529652165,0.002,3048.0,3047.9,7.29202862]
[1763529652480,0.002,3048.0,3047.9,8.19576238]
[1763529652659,0.002,3048.0,3047.9,9.3736491]
[1763529653057,0.002,3048.0,3047.9,8.19576238]
[1763529653381,0.002,3048.0,3047.9,9.94107137]
[1763529654152,0.002,3048.0,3047.9,2.97067376]
[1763529654478,0.0822,3048.0,3047.3,1.17849509]
[1763529654689,0.585404,3047.9,3047.0,1.17849509]
[1763529654882,0.585404,3047.9,3047.1,1.17849509]
[1763529655081,0.585404,3047.9,3047.0,1.17849509]
[1763529655381,0.002,3048.0,3047.2,6.06666385]
[1763529655579,0.002,3048.0,3047.2,6.53576385]
[1763529655952,0.002,3048.0,3047.3,0.4691]
[1763529656587,0.002,3048.0,3047.2,6.06666385]
[1763529656882,0.002,3048.0,3047.0,0.89786662]
[1763529657187,0.405504,3047.8,3047.5,0.001]
[1763529657983,0.1799,3047.9,3047.5,0.001]
[1763529658982,0.002,3048.0,3047.5,0.001]
[1763529658983,0.002,3048.0,3047.5,0.4701]
[1763529659482,0.002,3048.0,3047.9,0.4513]
[1763529659891,0.002,3048.0,3047.9,1.66289565]
[1763529660292,0.002,3048.3,3047.9,1.69570512]
[1763529660492,0.002,3048.4,3048.3,0.90699264]
[1763529660730,0.002,3048.4,3048.3,1.35829264]
[1763529660897,0.002,3048.4,3048.3,1.82739264]
[1763529663463,0.002,3048.4,3048.3,1.86019781]
[1763529663768,0.002,3048.4,3048.3,1.82739264]
[1763529663970,0.002,3048.4,3048.3,2.63512829]
[1763529665798,0.002,3048.4,3048.2,0.1833]
[1763529666112,0.002,3048.4,3047.7,1.74530899]
[1763529666113,0.002,3048.4,3048.3,0.9204]
[1763529667320,0.002,3048.4,3048.3,0.95320517]
[1763529667520,0.002,3048.4,3047.8,1.74530899]
[1763529667521,0.0883,3048.4,3047.8,1.74530899]
[1763529667721,0.0883,3048.4,3046.4,0.001]
[1763529667722,0.0054,3047.3,3046.8,2.3547444]
[1763529667884,0.1799,3047.9,3046.4,0.001]
[1763529667885,0.405504,3046.8,3046.4,0.001]
[1763529668389,0.0864,3046.5,3046.4,0.001]
[1763529668779,0.5454,3046.5,3046.4,0.001]
[1763529669115,0.0864,3046.5,3046.4,0.001]
[1763529669788,0.1819,3046.9,3046.4,0.001]
[1763529669995,0.4781,3046.5,3046.4,0.001]
[1763529670584,0.1819,3046.9,3046.4,0.001]
[1763529671899,0.868304,3046.8,3046.4,0.001]
[1763529672698,0.4628,3046.8,3046.4,0.001]
[1763529673104,0.0864,3046.5,3046.4,0.001]
[1763529675902,0.950904,3046.5,3046.4,0.001]
[1763529676603,0.491904,3046.5,3046.4,0.001]
[1763529676931,0.950904,3046.5,3046.4,0.001]
[1763529678402,0.491904,3046.5,3046.4,0.001]
[1763529678719,0.1819,3046.9,3046.4,0.001]
[1763529678919,0.405504,3046.8,3046.4,0.001]
[1763529679825,0.1819,3046.9,3046.4,0.001]
[1763529680028,0.1799,3047.9,3046.5,0.4783]
[1763529680029,0.1819,3047.2,3046.5,0.4783]
[1763529680414,0.1819,3047.2,3046.4,0.001]
[1763529680415,0.6447,3047.2,3046.4,0.001]
[1763529680616,0.405504,3047.1,3046.4,0.001]
[1763529681052,0.868304,3047.1,3046.4,0.001]
[1763529681434,0.405504,3047.1,3046.4,0.001]
[1763529681655,0.405504,3046.9,3046.4,0.001]
[1763529681951,0.868304,3046.9,3046.4,0.001]
[1763529682336,0.405504,3046.9,3046.4,0.001]
[1763529682743,0.896704,3046.9,3046.4,0.001]
[1763529682941,0.0582,3046.5,3046.4,0.001]
[1763529683152,0.892404,3046.9,3046.4,0.001]
[1763529683354,0.405504,3046.9,3046.4,0.001]
[1763529683532,0.4912,3046.8,3046.4,0.001]
[1763529684147,0.0582,3046.5,3046.4,0.001]
[1763529684345,0.950604,3046.5,3046.4,0.001]
[1763529697839,1.31249664,3046.4,3046.1,0.001]
[1763529698029,0.410404,3046.2,3046.1,0.001]
[1763529698526,1.10475129,3046.2,3046.1,0.001]
[1763529698732,0.893104,3046.2,3046.1,0.001]
[1763529699156,1.76588109,3046.2,3046.1,0.001]
[1763529699369,1.76588109,3046.2,3045.1,0.001]
[1763529699370,0.4668,3042.0,3041.7,3.86]
[1763529699666,0.4668,3042.0,3040.6,6.41]
[1763529699667,0.90699264,3042.6,3041.1,0.6897]
[1763529699830,0.87277709,3042.1,3040.5,0.195]
[1763529700029,0.87277709,3042.1,3038.6,6.5517291]
[1763529700030,2.29139341,3042.0,3038.7,0.0329088]
[1763529700252,0.87106809,3039.2,3039.1,0.03290447]
[1763529700429,2.90356033,3040.5,3039.1,0.03290447]
[1763529700430,2.90356033,3040.4,3039.5,0.4829]
[1763529700638,0.69268189,3040.3,3039.6,1.28165085]
[1763529700863,4.06136661,3040.9,3039.6,1.28165085]
[1763529700864,0.69268189,3040.2,3039.6,1.28165085]
[1763529701063,2.90356033,3040.6,3039.6,0.03289906]
[1763529701262,6.96492694,3041.0,3040.5,0.6597]
[1763529701563,6.28767016,3041.6,3038.9,0.1768]
[1763529701564,2.90356033,3040.9,3039.1,0.03290447]
[1763529701770,2.90356033,3040.8,3039.1,0.03290447]
[1763529702075,4.06136661,3041.2,3039.2,0.4947]
[1763529702076,2.90356033,3040.7,3039.2,0.4947]
[1763529702286,2.90356033,3041.0,3040.6,0.4829]
[1763529702468,2.90356033,3041.0,3039.3,0.93989495]
[1763529702469,2.90356033,3041.5,3040.7,0.03288716]
[1763529702646,2.90356033,3042.7,3041.8,0.1768]
[1763529702841,2.90356033,3042.5,3041.8,0.1768]
[1763529703075,2.90356033,3042.3,3041.8,0.1768]
[1763529703259,0.4827,3042.7,3041.8,0.1768]
[1763529703692,0.405504,3042.6,3041.8,0.1768]
[1763529703994,1.08879264,3042.9,3041.8,0.1768]
[1763529704275,2.90356033,3043.2,3041.8,0.6715]
[1763529704484,3.56806033,3043.3,3041.8,0.6715]
[1763529704776,0.1818,3043.3,3041.9,0.4947]
[1763529705277,0.1818,3043.8,3041.9,0.4947]
[1763529705677,3.07596033,3044.0,3042.0,0.0328731]
[1763529705881,0.1724,3044.0,3042.0,0.0328731]
[1763529706185,0.1818,3043.9,3042.1,0.4947]
[1763529706559,0.6645,3043.9,3042.1,0.4947]
[1763529706968,0.6645,3043.9,3042.1,0.52757202]
[1763529707276,0.6645,3044.4,3042.1,0.52757202]
[1763529707478,0.4827,3044.3,3042.1,0.52757202]
[1763529708246,0.405504,3044.2,3042.1,0.52757202]
[1763529708553,0.405504,3044.2,3042.1,0.4947]
[1763529708554,0.43836105,3044.2,3042.1,0.4947]
[1763529708758,0.405504,3044.0,3042.1,0.4947]
[1763529708958,0.405504,3044.0,3042.2,0.03287094]
[1763529709266,0.1818,3043.9,3042.3,0.4947]
[1763529710094,0.6645,3043.9,3042.3,0.4947]
[1763529710988,0.1818,3043.9,3042.4,0.03286878]
[1763529711206,0.405504,3044.2,3042.4,0.03286878]
[1763529711358,0.405504,3044.2,3042.5,0.4947]
[1763529711558,0.405504,3044.2,3042.6,0.03286662]
[1763529711866,0.405504,3044.2,3042.5,0.4947]
[1763529712078,0.888204,3044.2,3042.5,0.4947]
[1763529712459,0.68759718,3044.1,3042.5,0.4947]
[1763529712676,0.68759718,3044.0,3042.5,0.4947]
[1763529712878,0.68759718,3043.9,3042.5,0.4947]
[1763529713080,0.72045423,3043.8,3042.5,0.4947]
[1763529713362,0.68759718,3043.7,3042.5,0.4947]
[1763529713595,0.68759718,3043.6,3042.5,0.4947]
[1763529713789,0.68759718,3043.5,3042.5,0.4947]
[1763529713959,0.68759718,3043.4,3042.5,0.4947]
[1763529714155,0.68759718,3043.3,3042.5,0.4947]
[1763529714359,0.68759718,3043.2,3042.5,0.4947]
[1763529714561,0.68759718,3043.1,3042.6,0.03286662]
[1763529714792,0.1818,3043.9,3042.6,0.03286662]
[1763529714993,0.688011,3043.8,3043.0,0.4829]
[1763529715195,0.688011,3043.7,3043.0,0.4829]
[1763529715364,0.688011,3043.6,3043.1,0.6806]
[1763529715691,0.688011,3043.5,3043.1,0.6806]
[1763529715889,0.688011,3043.4,3043.1,0.1859]
[1763529716090,0.688011,3043.3,3043.1,0.1859]
[1763529716290,0.688011,3043.2,3043.1,0.6806]
[1763529716669,0.688011,3043.2,3043.1,1.1635]
[1763529719104,2.29056603,3044.5,3043.1,1.1635]
[1763529719312,4.06136661,3045.3,3043.1,1.1635]
[1763529719313,0.68863052,3044.4,3043.2,0.52756014]
[1763529719609,0.68863052,3044.3,3043.2,0.52756014]
[1763529719810,0.68863052,3044.2,3043.2,0.52756014]
[1763529720128,0.68863052,3044.1,3043.2,0.4947]
[1763529720420,0.1818,3045.0,3043.2,0.4947]
[1763529720421,0.1818,3045.0,3043.3,0.405504]
[1763529720721,0.405504,3044.8,3043.2,0.4947]
[1763529720880,2.12836761,3044.6,3043.2,0.4947]
[1763529721080,0.405504,3044.4,3043.2,0.4947]
[1763529721303,0.68914458,3044.3,3043.2,0.4947]
[1763529721488,0.68914458,3044.2,3043.2,0.4947]
[1763529721698,0.68914458,3044.1,3043.2,0.4947]
[1763529721880,0.68914458,3044.0,3043.1,0.1859]
[1763529722081,0.68914458,3043.9,3043.1,0.1859]
[1763529722304,0.68914458,3043.8,3043.1,0.6806]
[1763529722501,0.68914458,3044.0,3043.1,0.6806]
[1763529722699,0.68914458,3043.9,3043.1,0.6806]
[1763529722904,0.68914458,3043.8,3043.1,0.6806]
[1763529723207,0.68998117,3043.7,3043.1,0.6806]
[1763529723413,0.68998117,3043.6,3043.2,0.4947]
[1763529723612,1.72286361,3044.4,3044.1,0.6688]
[1763529723812,1.72286361,3045.3,3044.3,0.4829]
[1763529723993,1.72286361,3045.3,3044.1,0.1859]
[1763529723994,0.69068287,3045.2,3044.7,0.4829]
[1763529724314,0.69068287,3045.1,3044.7,0.4829]
[1763529724497,0.69068287,3045.0,3044.7,0.4829]
[1763529724707,2.20556361,3045.6,3044.1,0.1859]
[1763529724708,0.6486,3044.8,3044.1,0.1859]
[1763529724903,0.69068287,3044.7,3044.1,0.1859]
[1763529725085,0.69068287,3044.7,3043.9,0.1859]
[1763529725086,0.72353992,3044.6,3043.9,0.1859]
[1763529725415,0.72353992,3044.6,3043.1,0.1859]
[1763529725416,0.405504,3044.4,3043.1,0.6806]
[1763529725584,0.4668,3044.0,3043.1,0.6806]
[1763529725783,1.33408287,3043.9,3042.9,0.1859]
[1763529726016,1.33408287,3043.9,3042.0,0.001]
[1763529726017,1.09618687,3043.8,3042.0,0.001]
[1763529726316,0.405504,3043.4,3042.0,0.4957]
[1763529726490,0.405504,3043.2,3042.0,0.4957]
[1763529726691,0.69068287,3043.1,3042.0,0.4957]
[1763529727013,0.69068287,3043.0,3042.0,0.001]
[1763529727212,0.69068287,3042.9,3042.0,0.001]
[1763529727421,0.69068287,3042.8,3042.0,0.001]
[1763529727595,1.09618687,3042.7,3042.0,0.001]
[1763529727918,2.41354648,3042.6,3042.0,0.001]
[1763529728121,0.69068287,3042.5,3042.0,0.001]
[1763529728415,1.59767551,3042.4,3042.0,0.001]
[1763529728604,0.69068287,3042.3,3042.0,0.001]
[1763529728785,0.69068287,3042.2,3042.0,0.001]
[1763529728985,0.69068287,3042.1,3042.0,0.001]
[1763529729617,1.18378287,3042.1,3042.0,0.001]
[1763529730399,3.31215048,3042.1,3042.0,0.001]
[1763529730603,1.58928687,3042.1,3042.0,0.001]
[1763529730889,0.69068287,3042.1,3041.6,0.001]
[1763529731224,1.15488329,3041.9,3041.6,0.4686]
[1763529731392,0.69068287,3041.8,3041.6,0.4686]
[1763529731593,0.69068287,3041.7,3041.6,0.4686]
[1763529731987,0.69068287,3041.7,3041.6,0.001]
[1763529736245,0.69068287,3041.7,3041.6,0.9364]
[1763529736443,1.15488329,3042.3,3041.6,0.9364]
[1763529736659,0.69331119,3042.2,3041.6,0.9364]
[1763529736866,0.69331119,3042.1,3041.6,0.9364]
[1763529737030,0.69331119,3042.0,3041.6,0.9364]
[1763529737355,0.69331119,3041.9,3041.6,0.4688]
[1763529737568,0.69313871,3042.4,3041.9,0.4678]
[1763529737773,0.69313871,3042.3,3042.0,0.0328731]
[1763529737921,0.69325188,3042.7,3042.3,0.4678]
[1763529738120,0.69325188,3042.6,3042.3,0.4678]
[1763529738357,0.69325188,3042.5,3042.3,0.4678]
[1763529738659,0.1991,3042.8,3042.1,0.1768]
[1763529738826,0.69422946,3042.7,3042.1,0.1768]
[1763529739028,1.15488329,3043.2,3042.2,0.50047094]
[1763529739253,0.6944952,3043.1,3042.2,0.50047094]
[1763529739554,0.6944952,3043.0,3042.2,0.50047094]
[1763529739766,0.4931,3043.5,3042.2,0.50047094]
[1763529739767,0.6944952,3042.9,3042.2,0.50047094]
[1763529739977,0.6944952,3043.4,3042.2,0.50047094]
[1763529740269,0.6944952,3043.3,3042.2,0.4676]
[1763529740442,0.6944952,3043.2,3042.2,0.4676]
[1763529740640,0.6944952,3043.1,3042.2,0.4676]
[1763529740836,0.6944952,3043.5,3042.3,0.0929]
[1763529741041,0.6944952,3043.4,3043.0,0.4678]
[1763529741247,0.6944952,3043.8,3043.3,0.4678]
[1763529741447,0.6944952,3043.8,3042.3,0.0929]
[1763529741448,0.6944952,3043.7,3042.3,0.5605]
[1763529741739,0.405504,3043.5,3042.3,0.0929]
[1763529742053,0.405504,3043.3,3042.1,0.1768]
[1763529742260,0.405504,3043.1,3042.1,0.1768]
[1763529742461,0.6944952,3043.0,3042.1,0.1768]
[1763529742662,0.405504,3043.1,3042.1,0.1768]
[1763529742663,0.6944952,3042.9,3042.1,0.1768]
[1763529742865,0.6944952,3042.8,3042.1,0.1768]
[1763529743066,0.405504,3043.1,3042.1,0.1768]
[1763529743067,0.6944952,3042.7,3042.1,0.1768]
[1763529743267,0.1984,3042.7,3042.1,0.1768]
[1763529744479,0.4756,3042.6,3041.6,0.001]
[1763529744684,0.4966,3042.2,3041.6,0.001]
[1763529745376,0.4756,3042.1,3041.6,0.001]
[1763529746080,0.1984,3041.7,3041.6,0.001]
[1763529746394,0.8928952,3042.0,3041.6,0.001]
[1763529746590,0.674,3042.0,3041.6,0.001]
[1763529746744,0.4756,3041.9,3041.6,0.001]
[1763529747497,0.4966,3041.7,3041.6,0.001]
[1763529748698,0.4756,3041.9,3041.6,0.001]
[1763529748995,0.6944952,3041.9,3041.6,0.001]
[1763529749151,0.4756,3041.9,3041.6,0.001]
[1763529749983,0.4966,3041.7,3041.6,0.001]
[1763529750703,0.6944952,3041.8,3041.6,0.001]
[1763529750872,0.6944952,3042.2,3041.6,0.4933]
[1763529751059,0.1984,3042.4,3041.7,0.4923]
[1763529751677,0.674,3042.4,3041.7,0.4923]
[1763529751965,0.674,3042.4,3041.6,0.001]
[1763529752178,1.3684952,3042.4,3041.6,0.001]
[1763529752492,0.6944952,3042.3,3041.6,0.001]
[1763529752690,0.6944952,3042.3,3041.6,0.53377743]
[1763529752860,0.8928952,3042.7,3042.2,0.6691]
[1763529753062,0.6944952,3043.0,3042.2,0.6691]
[1763529753261,1.3684952,3043.1,3042.2,0.6691]
[1763529753571,1.3684952,3043.1,3041.6,0.001]
[1763529753572,1.20295225,3043.0,3041.6,0.001]
[1763529753773,0.405504,3042.9,3041.7,0.4999]
[1763529753969,0.6944952,3042.9,3041.8,0.03287527]
[1763529754290,0.1984,3043.1,3041.7,0.4999]
[1763529754671,1.3684952,3043.1,3041.7,0.4999]
[1763529754869,0.6944952,3043.0,3041.7,0.4999]
[1763529755302,0.1984,3042.9,3041.7,0.4999]
[1763529755685,1.20295225,3042.8,3041.6,0.001]
[1763529755989,0.6944952,3042.7,3041.6,0.001]
[1763529756202,1.1700952,3042.7,3041.6,0.001]
[1763529756571,0.4506,3042.6,3041.6,0.001]
[1763529758499,0.405504,3042.5,3041.6,0.001]
[1763529758864,1.10539264,3042.9,3041.6,0.001]
[1763529758865,0.405504,3042.3,3041.6,0.001]
[1763529759271,0.4506,3042.3,3041.6,0.001]
[1763529760268,0.405504,3042.4,3041.6,0.001]
[1763529760467,0.4506,3042.6,3041.6,0.001]
[1763529761316,0.43836105,3042.5,3041.6,0.001]
[1763529761469,0.405504,3042.3,3041.6,0.001]
[1763529762690,0.4506,3042.4,3041.6,0.001]
[1763529764314,0.69680533,3042.5,3041.7,0.4819]
[1763529764518,0.4506,3042.4,3041.6,0.001]
[1763529766386,0.4506,3042.4,3041.6,0.151]
[1763529768393,0.43836105,3042.3,3041.6,0.151]
[1763529768927,0.6921,3041.7,3041.6,0.151]
[1763529769755,0.4506,3042.2,3041.6,0.151]
[1763529769756,0.1979,3041.9,3041.6,0.151]
[1763529769929,0.69680533,3042.1,3041.6,0.151]
[1763529770223,0.405504,3042.3,3041.6,0.151]
[1763529770427,0.4506,3042.2,3041.6,0.151]
[1763529771733,1.14740533,3042.2,3041.6,0.151]
[1763529772439,0.69680533,3042.3,3042.1,0.6651]
[1763529772642,0.87092391,3043.2,3042.2,0.4883]
[1763529772934,1.5689145,3043.3,3042.5,0.4883]
[1763529773248,0.69799059,3043.4,3043.0,0.4883]
[1763529773569,0.69992596,3043.5,3043.0,0.9702]
[1763529773734,0.002,3043.5,3043.0,0.9702]
[1763529774839,0.002,3043.5,3043.0,0.4883]
[1763529776432,0.002,3043.5,3043.0,0.9702]
[1763529777446,0.002,3043.5,3043.0,1.87719264]
[1763529777680,0.002,3043.5,3043.0,2.67349834]
[1763529777888,0.002,3043.5,3043.0,3.07900234]
[1763529778681,0.002,3043.5,3043.4,0.5812]
[1763529779067,0.002,3043.5,3043.4,1.0631]
[1763529780481,0.002,3043.5,3043.1,0.0929]
[1763529780638,0.002,3043.5,3043.4,0.4883]
[1763529781195,0.002,3043.5,3043.4,0.9702]
[1763529783721,0.002,3043.5,3043.4,7.05606432]
[1763529783928,0.002,3045.0,3043.7,0.4883]
[1763529784211,0.002,3045.0,3043.8,0.4819]
[1763529785889,0.6485,3044.9,3043.8,0.4819]
[1763529786425,0.4506,3044.8,3043.4,0.4819]
[1763529786572,0.4506,3044.8,3043.5,0.4591]
[1763529787724,0.03285705,3044.7,3043.1,0.99989264]
[1763529787885,0.4506,3044.8,3043.2,1.1676757]
[1763529788086,0.4668,3044.7,3043.2,1.1676757]
[1763529788599,0.03285705,3044.6,3043.2,1.1676757]
[1763529788916,0.405504,3044.5,3043.1,0.0929]
[1763529789116,0.405504,3044.5,3043.2,0.03286014]
[1763529789320,0.405504,3044.8,3043.2,0.49196014]
[1763529789484,0.872304,3044.8,3043.2,0.49196014]
[1763529789679,0.4668,3044.8,3043.2,0.4591]
[1763529790013,0.4668,3044.8,3043.6,0.90699264]
[1763529790190,0.4668,3044.8,3043.7,0.6992857]
[1763529790386,0.4668,3044.8,3043.7,1.1583857]
[1763529790628,0.4668,3044.8,3043.7,0.6992857]
[1763529790779,0.4668,3044.8,3043.2,0.4591]
[1763529791385,0.43836105,3044.7,3043.1,0.0929]
[1763529791811,0.405504,3044.5,3043.1,0.0929]
[1763529792112,0.405504,3044.5,3043.2,0.49196014]
[1763529792374,0.405504,3044.5,3043.1,0.0929]
[1763529792375,0.405504,3044.3,3043.1,0.0929]
[1763529792532,0.405504,3044.1,3043.1,0.0929]
[1763529792683,0.405504,3044.1,3042.7,0.4591]
[1763529793036,0.4668,3044.0,3042.4,0.4591]
[1763529793182,0.405504,3043.9,3042.4,0.4591]
[1763529793382,0.591904,3043.9,3042.4,0.4591]
[1763529793623,0.4668,3043.8,3042.4,0.4591]
[1763529793998,0.405504,3043.7,3042.1,0.1768]
[1763529794502,0.405504,3043.5,3042.1,0.1768]
[1763529794890,0.4668,3043.6,3042.2,0.4591]
[1763529795130,0.4668,3043.5,3042.3,0.03286986]
[1763529795496,0.4668,3043.5,3042.3,0.49196986]
[1763529795927,0.4668,3043.5,3043.0,0.001]
[1763529797620,0.6532,3043.9,3043.0,0.001]
[1763529797819,0.1864,3043.9,3043.1,0.0929]
[1763529798122,0.4668,3044.2,3043.2,0.03286014]
[1763529798319,0.4668,3044.2,3043.2,0.49196014]
[1763529798519,0.4668,3044.5,3043.2,0.4591]
[1763529798829,0.4668,3044.3,3043.2,0.4591]
[1763529799035,0.4668,3044.3,3043.1,0.0929]
[1763529799927,0.4668,3044.3,3043.0,0.001]
[1763529799928,0.03285705,3044.2,3043.0,0.001]
[1763529800131,0.43836105,3044.2,3043.0,0.001]
[1763529800333,0.4668,3044.1,3043.0,0.001]
[1763529800966,0.4668,3044.1,3043.1,0.0929]
[1763529801527,0.03285705,3044.0,3043.0,0.001]
[1763529802032,0.1864,3043.9,3043.1,0.0929]
[1763529802552,0.1864,3043.9,3043.1,0.60376122]
[1763529803563,0.667,3043.9,3043.0,0.001]
[1763529804031,0.1864,3043.9,3043.1,0.0929]
[1763529805456,0.4806,3043.8,3043.0,0.001]
[1763529805658,0.1864,3043.9,3043.0,0.001]
[1763529805859,0.1864,3043.9,3043.1,0.0929]
[1763529806271,0.667,3043.9,3043.1,0.0929]
[1763529806752,0.4806,3043.8,3043.1,0.0929]
[1763529806967,0.4806,3043.8,3043.0,0.001]
[1763529807482,0.4806,3043.8,3043.1,0.0929]
[1763529807625,0.1864,3043.9,3043.1,0.0929]
[1763529810061,0.667,3043.9,3043.1,0.0929]
[1763529810932,0.1864,3043.9,3043.1,0.0929]
[1763529811132,0.4806,3043.8,3043.1,0.0929]
[1763529812054,0.1864,3043.9,3043.2,0.03286014]
[1763529812254,0.1864,3043.9,3043.1,0.0929]
[1763529813575,0.667,3043.9,3043.1,0.0929]
[1763529814581,0.1864,3043.9,3043.1,0.60376122]
[1763529814755,0.1864,3043.9,3043.1,0.5709]
[1763529814954,0.1864,3043.9,3043.2,0.478]
[1763529815153,0.69885176,3044.3,3043.8,0.4936]
[1763529815357,0.002,3044.3,3044.2,0.4936]
[1763529815659,0.002,3044.3,3043.3,0.478]
[1763529815660,0.9442,3044.3,3043.3,0.478]
[1763529816055,0.002,3044.3,3043.3,0.478]
[1763529817256,0.002,3044.3,3044.2,0.1394]
[1763529817580,0.002,3044.3,3043.4,0.03285798]
[1763529817775,0.002,3044.3,3043.5,0.4531]
[1763529817984,0.002,3044.3,3043.6,0.03285582]
[1763529818286,0.002,3044.3,3044.2,0.4621]
[1763529818869,0.002,3044.3,3044.2,0.9152]
[1763529819058,0.002,3044.3,3044.2,0.4621]
[1763529819254,0.002,3044.3,3044.1,0.1394]
[1763529819591,0.002,3044.3,3044.2,0.4621]
[1763529821385,0.002,3044.3,3044.2,0.9152]
[1763529822800,0.002,3044.3,3044.2,0.4621]
[1763529823088,0.002,3044.3,3044.2,0.9152]
[1763529823684,0.002,3044.3,3044.1,0.1394]
[1763529825298,0.002,3044.3,3043.3,3.86]
[1763529825463,0.9467,3044.2,3043.4,0.38928601]
[1763529825665,0.002,3044.3,3043.4,1.74937865]
[1763529825866,0.4869,3044.3,3043.4,1.74937865]
[1763529826397,0.002,3044.3,3043.5,0.4531]
[1763529826900,0.002,3044.3,3043.4,1.29627865]
[1763529826901,0.4869,3044.3,3043.4,1.29627865]
[1763529827071,0.002,3044.3,3043.5,0.51562787]
[1763529827598,0.4869,3044.3,3043.5,0.51562787]
[1763529828779,0.4869,3044.3,3043.1,0.99989264]
[1763529829497,0.002,3044.3,3043.2,0.4531]
[1763529829695,0.002,3044.3,3043.3,0.03285906]
[1763529830031,0.4869,3044.3,3043.2,0.4531]
[1763529832880,0.4869,3044.3,3043.4,0.90699264]
[1763529833491,0.4869,3044.3,3043.5,0.0328569]
[1763529833705,0.002,3044.3,3043.5,0.0328569]
[1763529835808,0.4869,3044.3,3043.5,0.0328569]
[1763529836317,0.002,3044.3,3043.5,0.0328569]
[1763529836521,0.002,3044.3,3043.6,0.03285582]
[1763529837014,0.002,3044.3,3043.6,0.48595582]
[1763529837390,0.002,3044.3,3044.2,0.6015]
[1763529837786,0.002,3044.3,3044.2,1.0546]
[1763529837987,0.002,3044.3,3044.2,1.08744935]
[1763529838811,0.002,3044.3,3044.2,5.82159264]
[1763529839015,0.002,3044.3,3044.2,6.4037519]
[1763529840918,0.002,3044.3,3044.2,5.9506519]
[1763529841116,0.4638,3044.3,3044.2,4.76699264]
[1763529841333,0.002,3044.3,3044.2,4.76699264]
[1763529841611,0.002,3044.3,3044.2,5.68219264]
[1763529841825,0.002,3044.3,3044.2,5.26194199]
[1763529841986,0.002,3044.3,3044.2,5.22909264]
[1763529842184,0.002,3044.3,3044.2,5.3038419]
[1763529843326,0.9487,3044.3,3044.2,0.90699264]
[1763529843522,0.4638,3044.3,3044.2,0.90699264]
[1763529843823,0.9487,3044.3,3044.2,0.90699264]
[1763529844828,0.9487,3044.3,3043.1,3.9539]
[1763529844987,0.4849,3044.2,3043.1,0.48939]
[1763529845185,0.4849,3044.2,3043.1,0.0939]
[1763529846414,0.4849,3044.2,3043.1,0.001]
[1763529846715,0.459,3043.2,3043.1,0.001]
[1763529847788,0.1954,3043.3,3043.1,0.001]
[1763529848110,0.459,3043.2,3043.1,0.001]
[1763529848605,0.9306,3043.2,3043.1,0.001]
[1763529849811,0.1954,3043.3,3043.1,0.001]
[1763529849996,0.459,3043.2,3043.1,0.001]
[1763529850416,0.9306,3043.2,3043.1,0.001]
[1763529852624,1.336104,3043.2,3043.1,0.001]
[1763529852832,1.336104,3043.2,3042.7,0.001]
[1763529852833,0.405504,3043.1,3042.7,0.001]
[1763529853033,2.76677468,3043.1,3042.7,0.001]
[1763529853192,1.85978204,3043.1,3042.7,0.001]
[1763529853393,1.058204,3042.8,3042.7,0.001]
[1763529853889,1.058204,3042.8,3042.4,0.001]
[1763529853890,0.405504,3042.6,3042.4,0.001]
[1763529854091,0.861104,3042.5,3042.4,0.001]
[1763529854487,2.02766482,3042.5,3042.4,0.001]
[1763529855300,0.405504,3042.4,3041.5,0.001]
[1763529855511,0.4869,3041.7,3041.5,0.001]
[1763529855922,0.9585,3041.7,3041.5,0.001]
[1763529856789,1.364004,3041.7,3041.5,0.001]
[1763529858723,0.9585,3041.7,3041.5,0.001]
[1763529861226,1.364004,3041.7,3041.5,0.001]
[1763529862206,0.405504,3041.6,3041.5,0.001]
[1763529862407,1.330204,3041.6,3041.2,0.001]
[1763529862607,0.405504,3041.2,3039.7,0.17188276]
[1763529862943,0.1954,3041.7,3039.7,0.17188276]
[1763529862944,0.699204,3041.0,3039.7,0.17188276]
[1763529863301,1.190204,3041.0,3039.7,0.17188276]
[1763529863865,0.405504,3040.9,3039.0,0.1768]
[1763529864066,0.405504,3040.9,3039.1,0.4699]
[1763529864067,1.096304,3040.9,3039.1,0.4699]
[1763529864558,0.405504,3040.7,3039.1,0.50280447]
[1763529864944,0.405504,3040.5,3039.1,0.4699]
[1763529865482,0.491,3040.4,3039.1,0.4699]
[1763529865772,0.1998,3040.9,3039.2,0.93989603]
[1763529865921,0.1998,3040.9,3039.3,0.75056679]
[1763529866121,0.6908,3040.9,3039.3,1.22046679]
[1763529866323,0.6908,3040.9,3039.4,0.4699]
[1763529866526,0.405504,3040.7,3039.4,0.4699]
[1763529867057,0.405504,3040.5,3039.4,0.4699]
[1763529867355,0.491,3040.6,3039.4,0.4699]
[1763529868547,0.1998,3040.9,3039.5,0.03290014]
[1763529868725,0.1998,3040.9,3039.6,0.6598672]
[1763529868926,0.1998,3040.9,3039.6,1.1297672]
[1763529869134,0.1954,3041.7,3040.8,0.5536]
[1763529869135,0.491,3041.6,3040.8,0.5536]
[1763529869333,0.491,3041.6,3040.0,0.90699264]
[1763529869555,0.03285705,3041.5,3040.1,0.70028645]
[1763529869858,0.405504,3041.5,3039.7,0.4699]
[1763529870046,0.405504,3041.3,3039.7,0.4699]
[1763529870559,0.491,3041.2,3039.7,0.4699]
[1763529870958,0.03285705,3041.1,3039.7,0.4699]
[1763529871334,0.52385705,3041.1,3039.7,0.4699]